[Event "AUT Bundesliga 2022-23"]
[Site "Jenbach"]
[Date "2022.11.06"]
[Round "4.12"]
[White "Naiditsch, Arkadij"]
[Black "Buhmann, Rainer"]
[Result "1/2-1/2"]
[ECO "A06"]
[WhiteElo "2667"]
[BlackElo "2561"]
[Annotator "ChessBase"]
[PlyCount "137"]
[EventDate "2022.11.03"]
[EventType "team-tourn"]
[EventCountry "AUT"]
[SourceTitle "playchess.com"]
[Source "ChessBase"]
[SourceQuality "1"]
[TimeControl "40/5400+30:1800+30"]

1. Nf3 {[%emt 0:00:04]} d5 {[%emt 0:00:21]} 2. g3 {[%emt 0:00:07]} Nf6 {[%emt 0:01:01]} 3. Bg2 {[%emt 0:00:09]} e6 {[%emt 0:00:22]} 4. O-O {[%emt 0:00:10]} Be7 {[%emt 0:00:04]} 5. d3 {[%emt 0:00:13]} b6 {[%emt 0:06:32]} 6. e4 {[%emt 0:03:35]} dxe4 {[%emt 0:02:08]} 7. Nfd2 {[%emt 0:02:47]} Bb7 {[%emt 0:00:36]} 8. dxe4 {[%emt 0:00:19]} e5 {[%emt 0:01:27]} 9. Nc3 {[%emt 0:04:03]} O-O {[%emt 0:08:02]} 10. a3 {[%emt 0:00:26]} Re8 {[%emt 0:02:28]} 11. Re1 {[%emt 0:04:46]} Bc5 {[%emt 0:22:35]} 12. Nd5 {[%emt 0:14:11]} c6 {[%emt 0:08:49]} 13. Ne3 {[%emt 0:06:14]} Qc7 {[%emt 0:05:45]} 14. g4 {[%emt 0:02:36]} Bxe3 {[%emt 0:05:22]} 15. Rxe3 {[%emt 0:00:32]} Ba6 {[%emt 0:00:46]} 16. Rh3 {[%emt 0:09:06]} Nfd7 {[%emt 0:03:37]} 17. Nf3 {[%emt 0:00:42]} Nf8 {[%emt 0:03:57]} 18. Nh4 {[%emt 0:03:10]} Nbd7 {[%emt 0:00:57]} 19. Nf5 {[%emt 0:00:25]} Nc5 {[%emt 0:00:53]} 20. g5 {[%emt 0:07:11]} Rad8 {[%emt 0:02:08]} 21. Qg4 {[%emt 0:00:44]} Nce6 {[%emt 0:01:33]} 22. Be3 {[%emt 0:00:08]} Nf4 {[%emt 0:02:43]} 23. Bxf4 {[%emt 0:01:28]} exf4 {[%emt 0:00:04]} 24. Rc3 {[%emt 0:00:14]} c5 {[%emt 0:03:39]} 25. h4 {[%emt 0:01:50]} Qe5 {[%emt 0:01:04]} 26. h5 {[%emt 0:08:20]} Rd2 {[%emt 0:01:38]} 27. Bf1 {[%emt 0:05:25]} Bxf1 {[%emt 0:02:08]} 28. Rxf1 {[%emt 0:00:07]} g6 {[%emt 0:04:17]} 29. hxg6 {[%emt 0:06:06]} fxg6 {[%emt 0:00:05]} 30. Nh4 {[%emt 0:00:10]} Qxe4 {[%emt 0:01:28]} 31. Rf3 {[%emt 0:01:41]} Qe6 {[%emt 0:05:46]} 32. Qg2 {[%emt 0:00:19]} Qd5 {[%emt 0:00:56]} 33. Rxf4 {[%emt 0:01:00]} Qxg2+ {[%emt 0:00:19]} 34. Nxg2 {[%emt 0:00:02]} Re5 {[%emt 0:00:46]} 35. Re1 {[%emt 0:11:58]} Rxe1+ {[%emt 0:00:48]} 36. Nxe1 {[%emt 0:00:02]} Ne6 {[%emt 0:00:31]} 37. Re4 {[%emt 0:01:47]} Nxg5 {[%emt 0:00:20]} 38. Re3 {[%emt 0:00:06]} Kf7 {[%emt 0:00:37]} 39. b4 {[%emt 0:02:10]} Ne6 {[%emt 0:02:06]} 40. c4 {[%emt 0:00:00]} Kf6 {[%emt 0:00:00]} 41. Nd3 {[%emt 0:01:34]} Rc2 {[%emt 0:17:01]} 42. Ne5 {[%emt 0:03:05]} cxb4 {[%emt 0:06:07]} 43. axb4 {[%emt 0:00:09]} Kf5 {[%emt 0:01:52]} 44. Nc6 {[%emt 0:03:47]} Rxc4 {[%emt 0:03:21]} 45. Ne7+ {[%emt 0:00:06]} Kf6 {[%emt 0:00:07]} 46. Nd5+ {[%emt 0:00:08]} Kf7 {[%emt 0:02:17]} 47. Ra3 {[%emt 0:00:08]} Ng5 {[%emt 0:02:14]} 48. Rxa7+ {[%emt 0:00:42]} Ke6 {[%emt 0:00:05]} 49. Nxb6 {[%emt 0:00:49]} Rxb4 {[%emt 0:00:47]} 50. Nd7 {[%emt 0:00:39]} Rf4 {[%emt 0:02:01]} 51. Nc5+ {[%emt 0:00:10]} Kf6 {[%emt 0:00:36]} 52. Nd7+ {[%emt 0:03:19]} Kf5 {[%emt 0:00:41]} 53. Ra5+ {[%emt 0:00:13]} Kg4 {[%emt 0:00:21]} 54. Ne5+ {[%emt 0:00:29]} Kh4 {[%emt 0:00:35]} 55. Kg2 {[%emt 0:00:33]} Re4 {[%emt 0:00:42]} 56. Rb5 {[%emt 0:01:13]} Rf4 {[%emt 0:00:26]} 57. Rb1 {[%emt 0:00:54]} Ne4 {[%emt 0:00:34]} 58. f3 {[%emt 0:02:04]} Nc3 {[%emt 0:00:32]} 59. Rb7 {[%emt 0:00:49]} Kg5 {[%emt 0:00:14]} 60. Rxh7 {[%emt 0:00:27]} Ra4 {[%emt 0:00:26]} 61. Nf7+ {[%emt 0:00:22]} Kf6 {[%emt 0:00:07]} 62. Nd6 {[%emt 0:00:14]} Ke5 {[%emt 0:00:44]} 63. Nf7+ {[%emt 0:00:57]} Kf6 {[%emt 0:00:08]} 64. Nd8 {[%emt 0:00:25]} g5 {[%emt 0:01:15]} 65. Rh6+ {[%emt 0:00:05]} Kf5 {[%emt 0:00:25]} 66. Ne6 {[%emt 0:00:14]} Nd5 {[%emt 0:00:38]} 67. Kg3 {[%emt 0:00:05]} Nf4 {[%emt 0:00:31]} 68. Ng7+ {[%emt 0:01:10]} Ke5 {[%emt 0:00:02]} 69. Rh2 {[%emt 0:02:07]} 1/2-1/2

[Event "AUT Bundesliga 2022-23"]
[Site "Jenbach"]
[Date "2022.11.06"]
[Round "4.13"]
[White "Rozentalis, Eduardas"]
[Black "Saric, Ivan"]
[Result "1/2-1/2"]
[ECO "B22"]
[WhiteElo "2500"]
[BlackElo "2668"]
[Annotator "ChessBase"]
[PlyCount "129"]
[EventDate "2022.11.03"]
[EventType "team-tourn"]
[EventCountry "AUT"]
[SourceTitle "playchess.com"]
[Source "ChessBase"]
[SourceQuality "1"]
[TimeControl "40/5400+30:1800+30"]

1. e4 {[%emt 0:00:04]} c5 {[%emt 0:00:04]} 2. c3 {[%emt 0:00:25]} d5 {[%emt 0:00:10]} 3. exd5 {[%emt 0:00:09]} Nf6 {[%emt 0:00:06]} 4. Nf3 {[%emt 0:07:39]} Nxd5 {[%emt 0:00:17]} 5. d4 {[%emt 0:00:05]} e6 {[%emt 0:01:50]} 6. Bd3 {[%emt 0:06:20]} Be7 {[%emt 0:04:55]} 7. O-O {[%emt 0:03:26]} O-O {[%emt 0:00:17]} 8. Qe2 {[%emt 0:03:21]} Nd7 {[%emt 0:03:19]} 9. Re1 {[%emt 0:08:30]} Qc7 {[%emt 0:04:34]} 10. Ne5 {[%emt 0:17:15]} cxd4 {[%emt 0:01:39]} 11. cxd4 {[%emt 0:00:25]} Nxe5 {[%emt 0:00:32]} 12. dxe5 {[%emt 0:00:23]} Rd8 {[%emt 0:02:23]} 13. Bd2 {[%emt 0:03:50]} b5 {[%emt 0:30:07]} 14. Rc1 {[%emt 0:09:30]} Qb6 {[%emt 0:01:40]} 15. Nc3 {[%emt 0:00:09]} Bb7 {[%emt 0:05:43]} 16. Nxd5 {[%emt 0:06:00]} Bxd5 {[%emt 0:00:37]} 17. Be3 {[%emt 0:04:04]} Qb7 {[%emt 0:00:16]} 18. f3 {[%emt 0:01:02]} b4 {[%emt 0:10:02]} 19. Ba6 {[%emt 0:05:32]} Qb8 {[%emt 0:00:28]} 20. Bf2 {[%emt 0:03:58]} h5 {[%emt 0:03:18]} 21. b3 {[%emt 0:01:30]} Bg5 {[%emt 0:01:23]} 22. Rc2 {[%emt 0:02:41]} Bb7 {[%emt 0:02:44]} 23. Bc4 {[%emt 0:03:18]} a5 {[%emt 0:00:34]} 24. Re1 {[%emt 0:00:38]} g6 {[%emt 0:01:44]} 25. Bc5 {[%emt 0:01:11]} Bd5 {[%emt 0:00:38]} 26. Bd6 {[%emt 0:03:07]} Qa7+ {[%emt 0:01:33]} 27. Qf2 {[%emt 0:00:46]} Rdc8 {[%emt 0:06:49]} 28. Qxa7 {[%emt 0:02:07]} Rxa7 {[%emt 0:00:04]} 29. Ree2 {[%emt 0:01:10]} Bxc4 {[%emt 0:02:32]} 30. Rxc4 {[%emt 0:00:08]} Rxc4 {[%emt 0:00:09]} 31. bxc4 {[%emt 0:00:03]} Ra6 {[%emt 0:01:05]} 32. g3 {[%emt 0:02:09]} f6 {[%emt 0:02:31]} 33. f4 {[%emt 0:00:32]} fxe5 {[%emt 0:00:10]} 34. fxe5 {[%emt 0:00:36]} Rc6 {[%emt 0:02:20]} 35. c5 {[%emt 0:01:29]} a4 {[%emt 0:03:34]} 36. Kf2 {[%emt 0:03:46]} Bc1 {[%emt 0:00:14]} 37. Re4 {[%emt 0:01:03]} Ba3 {[%emt 0:02:25]} 38. Re3 {[%emt 0:00:10]} b3 {[%emt 0:05:01]} 39. axb3 {[%emt 0:00:05]} axb3 {[%emt 0:00:03]} 40. Rxb3 {[%emt 0:00:00]} Bxc5+ {[%emt 0:00:00]} 41. Bxc5 {[%emt 0:04:29]} Rxc5 {[%emt 0:01:00]} 42. Re3 {[%emt 0:01:06]} g5 {[%emt 0:00:28]} 43. Kf3 {[%emt 0:02:20]} Kg7 {[%emt 0:00:22]} 44. g4 {[%emt 0:00:19]} h4 {[%emt 0:00:37]} 45. h3 {[%emt 0:00:12]} Kf7 {[%emt 0:00:32]} 46. Ke4 {[%emt 0:03:36]} Rc4+ {[%emt 0:00:36]} 47. Kf3 {[%emt 0:01:27]} Rf4+ {[%emt 0:00:34]} 48. Kg2 {[%emt 0:01:02]} Ke7 {[%emt 0:00:09]} 49. Ra3 {[%emt 0:00:24]} Re4 {[%emt 0:00:16]} 50. Ra7+ {[%emt 0:05:06]} Ke8 {[%emt 0:02:10]} 51. Kf3 {[%emt 0:02:45]} Rxe5 {[%emt 0:00:05]} 52. Rg7 {[%emt 0:00:09]} Kf8 {[%emt 0:01:28]} 53. Rh7 {[%emt 0:00:11]} Kg8 {[%emt 0:01:01]} 54. Re7 {[%emt 0:00:27]} Re1 {[%emt 0:00:08]} 55. Kf2 {[%emt 0:00:22]} Kf8 {[%emt 0:01:03]} 56. Rh7 {[%emt 0:00:25]} Rb1 {[%emt 0:06:32]} 57. Kf3 {[%emt 0:00:49]} Rb3+ {[%emt 0:00:21]} 58. Ke4 {[%emt 0:00:16]} Kg8 {[%emt 0:00:06]} 59. Re7 {[%emt 0:01:22]} Rxh3 {[%emt 0:00:37]} 60. Rxe6 {[%emt 0:00:13]} Kf7 {[%emt 0:00:47]} 61. Ra6 {[%emt 0:00:56]} Rc3 {[%emt 0:00:24]} 62. Ra7+ {[%emt 0:02:11]} Ke6 {[%emt 0:00:08]} 63. Ra6+ {[%emt 0:00:07]} Ke7 {[%emt 0:00:46]} 64. Ra5 {[%emt 0:00:19]} Kf6 {[%emt 0:02:46]} 65. Ra6+ {[%emt 0:00:08]} 1/2-1/2

[Event "AUT Bundesliga 2022-23"]
[Site "Jenbach"]
[Date "2022.11.06"]
[Round "4.14"]
[White "Brkic, Ante"]
[Black "Baenziger, Fabian"]
[Result "1/2-1/2"]
[ECO "B90"]
[WhiteElo "2602"]
[BlackElo "2439"]
[Annotator "ChessBase"]
[PlyCount "179"]
[EventDate "2022.11.03"]
[EventType "team-tourn"]
[EventCountry "AUT"]
[SourceTitle "playchess.com"]
[Source "ChessBase"]
[SourceQuality "1"]
[TimeControl "40/5400+30:1800+30"]

1. e4 {[%emt 0:00:04]} c5 {[%emt 0:00:06]} 2. Nf3 {[%emt 0:00:05]} d6 {[%emt 0:00:06]} 3. d4 {[%emt 0:00:08]} cxd4 {[%emt 0:00:05]} 4. Nxd4 {[%emt 0:00:09]} Nf6 {[%emt 0:00:07]} 5. Nc3 {[%emt 0:00:05]} a6 {[%emt 0:00:27]} 6. Bd3 {[%emt 0:00:05]} e5 {[%emt 0:01:20]} 7. Nde2 {[%emt 0:00:19]} Be7 {[%emt 0:01:18]} 8. O-O {[%emt 0:00:22]} O-O {[%emt 0:00:19]} 9. Ng3 {[%emt 0:00:19]} Be6 {[%emt 0:01:32]} 10. Nd5 {[%emt 0:00:43]} Bxd5 {[%emt 0:00:15]} 11. exd5 {[%emt 0:00:04]} g6 {[%emt 0:00:06]} 12. c4 {[%emt 0:01:53]} Nbd7 {[%emt 0:03:00]} 13. Bh6 {[%emt 0:02:44]} Re8 {[%emt 0:00:06]} 14. Rc1 {[%emt 0:00:06]} Nc5 {[%emt 0:12:47]} 15. Bb1 {[%emt 0:00:18]} a5 {[%emt 0:00:06]} 16. b3 {[%emt 0:06:27]} Rb8 {[%emt 0:04:05]} 17. f4 {[%emt 0:22:29]} exf4 {[%emt 0:04:27]} 18. Bxf4 {[%emt 0:06:12]} Nfd7 {[%emt 0:16:32]} 19. Rc3 {[%emt 0:03:04]} Bf6 {[%emt 0:09:10]} 20. Rcf3 {[%emt 0:00:59]} Be5 {[%emt 0:05:33]} 21. Bd2 {[%emt 0:04:02]} b5 {[%emt 0:05:42]} 22. cxb5 {[%emt 0:08:00]} Rxb5 {[%emt 0:00:52]} 23. Kh1 {[%emt 0:03:08]} Qh4 {[%emt 0:05:03]} 24. Be1 {[%emt 0:09:22]} Nf6 {[%emt 0:06:47]} 25. Rxf6 {[%emt 0:05:45]} Bxf6 {[%emt 0:00:12]} 26. Ne4 {[%emt 0:00:24]} Qxe4 {[%emt 0:02:14]} 27. Bxe4 {[%emt 0:00:08]} Nxe4 {[%emt 0:00:03]} 28. g4 {[%emt 0:10:43]} Re5 {[%emt 0:04:15]} 29. Qf3 {[%emt 0:06:25]} Rbxd5 {[%emt 0:01:35]} 30. h4 {[%emt 0:08:37]} h5 {[%emt 0:08:12]} 31. Kg2 {[%emt 0:01:28]} hxg4 {[%emt 0:04:23]} 32. Qxg4 {[%emt 0:00:06]} Re6 {[%emt 0:00:02]} 33. Rf4 {[%emt 0:01:41]} Nc5 {[%emt 0:00:57]} 34. Bg3 {[%emt 0:00:34]} Be5 {[%emt 0:02:07]} 35. Rf3 {[%emt 0:00:24]} Bxg3 {[%emt 0:01:12]} 36. Qxg3 {[%emt 0:00:13]} Rd2+ {[%emt 0:01:20]} 37. Kh3 {[%emt 0:00:21]} Ne4 {[%emt 0:00:40]} 38. Qg1 {[%emt 0:00:37]} Rxa2 {[%emt 0:01:13]} 39. Qa7 {[%emt 0:00:43]} Rf6 {[%emt 0:01:01]} 40. Qa8+ {[%emt 0:00:00]} Kg7 {[%emt 0:00:00]} 41. Qxe4 {[%emt 0:00:17]} Rxf3+ {[%emt 0:04:51]} 42. Qxf3 {[%emt 0:00:11]} Rc2 {[%emt 0:00:43]} 43. Qd3 {[%emt 0:03:08]} Rc5 {[%emt 0:00:13]} 44. Kg4 {[%emt 0:01:03]} Rh5 {[%emt 0:01:57]} 45. Qxd6 {[%emt 0:03:16]} Rb5 {[%emt 0:05:40]} 46. Qd3 {[%emt 0:01:40]} Rh5 {[%emt 0:00:32]} 47. Qd4+ {[%emt 0:01:46]} Kg8 {[%emt 0:01:05]} 48. Qc3 {[%emt 0:00:21]} Rb5 {[%emt 0:00:46]} 49. Qc6 {[%emt 0:03:20]} Rh5 {[%emt 0:00:08]} 50. Qc8+ {[%emt 0:06:40]} Kg7 {[%emt 0:00:06]} 51. Qd7 {[%emt 0:00:16]} Kg8 {[%emt 0:00:23]} 52. Qd8+ {[%emt 0:02:06]} Kg7 {[%emt 0:00:08]} 53. Qd4+ {[%emt 0:00:02]} Kg8 {[%emt 0:00:06]} 54. Kf3 {[%emt 0:02:51]} Rf5+ {[%emt 0:03:43]} 55. Ke3 {[%emt 0:00:50]} Rh5 {[%emt 0:01:14]} 56. Kd3 {[%emt 0:00:28]} Rf5 {[%emt 0:00:14]} 57. Qd8+ {[%emt 0:00:30]} Kg7 {[%emt 0:00:07]} 58. Ke4 {[%emt 0:00:10]} Rh5 {[%emt 0:00:24]} 59. Kd3 {[%emt 0:00:30]} Rf5 {[%emt 0:00:41]} 60. Qc8 {[%emt 0:01:13]} Rh5 {[%emt 0:00:21]} 61. Ke4 {[%emt 0:01:05]} Rb5 {[%emt 0:02:45]} 62. Qc3+ {[%emt 0:01:17]} Kg8 {[%emt 0:00:11]} 63. Qf6 {[%emt 0:00:22]} Rh5 {[%emt 0:00:50]} 64. Kd4 {[%emt 0:00:08]} Rb5 {[%emt 0:00:12]} 65. Kc4 {[%emt 0:01:02]} Rf5 {[%emt 0:00:50]} 66. Qd4 {[%emt 0:02:19]} Rh5 {[%emt 0:00:30]} 67. Kc3 {[%emt 0:00:28]} Rf5 {[%emt 0:00:16]} 68. Kb2 {[%emt 0:00:03]} Rh5 {[%emt 0:00:38]} 69. Ka3 {[%emt 0:00:01]} Rf5 {[%emt 0:00:06]} 70. Ka4 {[%emt 0:00:05]} Rh5 {[%emt 0:01:48]} 71. Qc3 {[%emt 0:00:03]} Kh7 {[%emt 0:00:04]} 72. Qf3 {[%emt 0:01:34]} Rf5 {[%emt 0:00:08]} 73. Qa8 {[%emt 0:01:20]} Kg7 {[%emt 0:00:11]} 74. Qd8 {[%emt 0:00:40]} Rh5 {[%emt 0:00:11]} 75. Qd4+ {[%emt 0:00:54]} Kg8 {[%emt 0:00:26]} 76. Qc3 {[%emt 0:00:15]} Kh7 {[%emt 0:00:05]} 77. Ka3 {[%emt 0:01:19]} Rf5 {[%emt 0:00:43]} 78. Qd4 {[%emt 0:00:15]} Kg8 {[%emt 0:00:27]} 79. Kb2 {[%emt 0:00:14]} Rh5 {[%emt 0:00:19]} 80. Qg4 {[%emt 0:00:23]} Kg7 {[%emt 0:00:26]} 81. Kc3 {[%emt 0:00:01]} Rf5 {[%emt 0:00:35]} 82. Kd3 {[%emt 0:00:19]} Rb5 {[%emt 0:00:54]} 83. Qd4+ {[%emt 0:00:15]} Kg8 {[%emt 0:00:05]} 84. Qc3 {[%emt 0:00:27]} Rf5 {[%emt 0:01:53]} 85. Kd4 {[%emt 0:01:39]} Rh5 {[%emt 0:02:24]} 86. Ke4 {[%emt 0:00:55]} Rb5 {[%emt 0:00:07]} 87. Qc8+ {[%emt 0:00:52]} Kg7 {[%emt 0:00:06]} 88. Qc3+ {[%emt 0:00:04]} Kg8 {[%emt 0:00:04]} 89. Qc8+ {[%emt 0:00:03]} Kg7 {[%emt 0:00:05]} 90. Qc3+ 1/2-1/2

[Event "AUT Bundesliga 2022-23"]
[Site "Jenbach"]
[Date "2022.11.06"]
[Round "4.15"]
[White "Atlas, Valery"]
[Black "Livaic, Leon"]
[Result "0-1"]
[ECO "C18"]
[WhiteElo "2412"]
[BlackElo "2574"]
[Annotator "ChessBase"]
[PlyCount "102"]
[EventDate "2022.11.03"]
[EventType "team-tourn"]
[EventCountry "AUT"]
[SourceTitle "playchess.com"]
[Source "ChessBase"]
[SourceQuality "1"]
[TimeControl "40/5400+30:1800+30"]

1. e4 {[%emt 0:00:02]} e6 {[%emt 0:00:12]} 2. d4 {[%emt 0:00:07]} d5 {[%emt 0:00:04]} 3. Nc3 {[%emt 0:00:06]} Bb4 {[%emt 0:00:04]} 4. e5 {[%emt 0:00:07]} c5 {[%emt 0:00:04]} 5. a3 {[%emt 0:00:04]} Bxc3+ {[%emt 0:00:03]} 6. bxc3 {[%emt 0:00:06]} Nc6 {[%emt 0:00:05]} 7. h4 {[%emt 0:03:30]} Bd7 {[%emt 0:04:07]} 8. h5 {[%emt 0:00:39]} Qa5 {[%emt 0:02:52]} 9. Bd2 {[%emt 0:03:04]} O-O-O {[%emt 0:08:39]} 10. Rb1 {[%emt 0:10:40]} f6 {[%emt 0:19:06]} 11. Rb5 {[%emt 0:05:21]} Qc7 {[%emt 0:00:04]} 12. Rxc5 {[%emt 0:06:10]} fxe5 {[%emt 0:15:37]} 13. Nf3 {[%emt 0:02:19]} Nf6 {[%emt 0:03:07]} 14. Nxe5 {[%emt 0:03:29]} Ne4 {[%emt 0:00:04]} 15. Rxc6 {[%emt 0:05:23]} Bxc6 {[%emt 0:00:06]} 16. f3 {[%emt 0:01:59]} Nxd2 {[%emt 0:00:57]} 17. Kxd2 {[%emt 0:05:15]} Qe7 {[%emt 0:06:10]} 18. Qe1 {[%emt 0:05:43]} Kb8 {[%emt 0:02:56]} 19. g4 {[%emt 0:05:03]} Rc8 {[%emt 0:01:01]} 20. Bd3 {[%emt 0:05:14]} Ka8 {[%emt 0:05:22]} 21. Qa1 {[%emt 0:09:07]} Rc7 {[%emt 0:01:52]} 22. a4 {[%emt 0:02:26]} Bd7 {[%emt 0:05:32]} 23. Qb2 {[%emt 0:04:46]} Rhc8 {[%emt 0:00:52]} 24. Rb1 {[%emt 0:02:13]} Bxa4 {[%emt 0:06:35]} 25. Qb4 {[%emt 0:02:36]} Qxb4 {[%emt 0:02:58]} 26. Rxb4 {[%emt 0:00:09]} b5 {[%emt 0:00:58]} 27. c4 {[%emt 0:05:36]} a5 {[%emt 0:02:38]} 28. Rb1 {[%emt 0:00:18]} bxc4 {[%emt 0:04:56]} 29. Bxh7 {[%emt 0:00:13]} c3+ {[%emt 0:00:13]} 30. Ke3 {[%emt 0:00:54]} Be8 {[%emt 0:00:39]} 31. Ra1 {[%emt 0:01:29]} Ra7 {[%emt 0:02:38]} 32. Bg8 {[%emt 0:03:11]} Ra6 {[%emt 0:00:52]} 33. Bf7 {[%emt 0:01:45]} Bxf7 {[%emt 0:01:11]} 34. Nxf7 {[%emt 0:00:02]} a4 {[%emt 0:00:25]} 35. Ra3 {[%emt 0:00:28]} Kb7 {[%emt 0:00:37]} 36. g5 {[%emt 0:02:54]} Kb6 {[%emt 0:00:18]} 37. h6 {[%emt 0:02:40]} gxh6 {[%emt 0:00:01]} 38. gxh6 {[%emt 0:00:14]} Ra7 {[%emt 0:01:06]} 39. Ng5 {[%emt 0:00:59]} Kb5 {[%emt 0:00:24]} 40. f4 {[%emt 0:00:00]} Kb4 {[%emt 0:00:00]} 41. Ra1 {[%emt 0:20:20]} a3 {[%emt 0:04:11]} 42. Rb1+ {[%emt 0:06:12]} Ka4 {[%emt 0:00:21]} 43. Ra1 {[%emt 0:02:45]} Rh8 {[%emt 0:03:07]} 44. Nxe6 {[%emt 0:01:59]} Rxh6 {[%emt 0:00:25]} 45. Nc5+ {[%emt 0:00:49]} Kb5 {[%emt 0:00:18]} 46. f5 {[%emt 0:02:12]} a2 {[%emt 0:02:04]} 47. Kf4 {[%emt 0:00:48]} Rh2 {[%emt 0:00:51]} 48. Ke5 {[%emt 0:00:34]} Rxc2 {[%emt 0:00:32]} 49. Kxd5 {[%emt 0:00:55]} Rb2 {[%emt 0:00:21]} 50. Ne4 {[%emt 0:01:21]} Kb4 {[%emt 0:00:03]} 51. f6 {[%emt 0:00:19]} c2 {[%emt 0:00:41]} 0-1

[Event "AUT Bundesliga 2022-23"]
[Site "Jenbach"]
[Date "2022.11.06"]
[Round "4.16"]
[White "Kuljasevic, Davorin"]
[Black "Brunner, Nicolas"]
[Result "1-0"]
[ECO "E00"]
[WhiteElo "2560"]
[BlackElo "2448"]
[Annotator "ChessBase"]
[PlyCount "133"]
[EventDate "2022.11.03"]
[EventType "team-tourn"]
[EventCountry "AUT"]
[SourceTitle "playchess.com"]
[Source "ChessBase"]
[SourceQuality "1"]
[TimeControl "40/5400+30:1800+30"]

1. d4 {[%emt 0:00:03]} Nf6 {[%emt 0:00:05]} 2. c4 {[%emt 0:00:08]} e6 {[%emt 0:00:03]} 3. Bf4 {[%emt 0:00:14]} Bb4+ {[%emt 0:04:33]} 4. Nd2 {[%emt 0:00:30]} O-O {[%emt 0:01:14]} 5. a3 {[%emt 0:00:54]} Bxd2+ {[%emt 0:01:51]} 6. Qxd2 {[%emt 0:00:15]} b6 {[%emt 0:00:49]} 7. e3 {[%emt 0:02:16]} Bb7 {[%emt 0:00:24]} 8. f3 {[%emt 0:00:46]} d6 {[%emt 0:00:45]} 9. Ne2 {[%emt 0:12:00]} Nbd7 {[%emt 0:00:28]} 10. Nc3 {[%emt 0:00:33]} e5 {[%emt 0:02:00]} 11. Bg5 {[%emt 0:06:21]} h6 {[%emt 0:04:00]} 12. Bh4 {[%emt 0:00:14]} exd4 {[%emt 0:03:50]} 13. Qxd4 {[%emt 0:04:02]} g5 {[%emt 0:09:18]} 14. Bf2 {[%emt 0:01:48]} Nc5 {[%emt 0:00:17]} 15. Rd1 {[%emt 0:04:24]} Qe7 {[%emt 0:06:52]} 16. Be2 {[%emt 0:04:11]} a5 {[%emt 0:10:05]} 17. O-O {[%emt 0:20:13]} a4 {[%emt 0:01:09]} 18. Rfe1 {[%emt 0:00:38]} Rfd8 {[%emt 0:06:02]} 19. e4 {[%emt 0:01:35]} Nfd7 {[%emt 0:09:46]} 20. Bf1 {[%emt 0:05:09]} Ne5 {[%emt 0:01:20]} 21. Nd5 {[%emt 0:06:57]} Bxd5 {[%emt 0:00:11]} 22. cxd5 {[%emt 0:00:10]} Rf8 {[%emt 0:04:55]} 23. Qc3 {[%emt 0:01:33]} f5 {[%emt 0:03:18]} 24. exf5 {[%emt 0:00:11]} Rxf5 {[%emt 0:00:07]} 25. Bd4 {[%emt 0:06:24]} Nb3 {[%emt 0:08:18]} 26. Bxe5 {[%emt 0:01:49]} Rxe5 {[%emt 0:01:08]} 27. Rxe5 {[%emt 0:00:19]} dxe5 {[%emt 0:02:58]} 28. Re1 {[%emt 0:03:22]} Qc5+ {[%emt 0:01:00]} 29. Qxc5 {[%emt 0:00:07]} Nxc5 {[%emt 0:00:12]} 30. Rxe5 {[%emt 0:00:11]} Kf7 {[%emt 0:00:31]} 31. Bb5 {[%emt 0:03:09]} Ra5 {[%emt 0:05:11]} 32. Be8+ {[%emt 0:01:30]} Kf6 {[%emt 0:01:21]} 33. Re3 {[%emt 0:00:15]} Ra8 {[%emt 0:06:53]} 34. Kf1 {[%emt 0:01:06]} Rd8 {[%emt 0:01:14]} 35. Bc6 {[%emt 0:00:08]} Rd6 {[%emt 0:01:17]} 36. Ke2 {[%emt 0:04:24]} Nd7 {[%emt 0:00:07]} 37. Rc3 {[%emt 0:05:55]} Nc5 {[%emt 0:01:14]} 38. Re3 {[%emt 0:00:11]} Nd7 {[%emt 0:00:05]} 39. Re8 {[%emt 0:04:28]} Ne5 {[%emt 0:00:31]} 40. Rf8+ {[%emt 0:00:00]} Kg6 {[%emt 0:00:00]} 41. Bxa4 {[%emt 0:10:56]} Rxd5 {[%emt 0:02:25]} 42. Bc2+ {[%emt 0:00:05]} Kg7 {[%emt 0:00:26]} 43. Rf5 {[%emt 0:00:26]} Rc5 {[%emt 0:01:08]} 44. Be4 {[%emt 0:01:33]} Nd7 {[%emt 0:01:26]} 45. Rxc5 {[%emt 0:00:49]} Nxc5 {[%emt 0:00:04]} 46. b4 {[%emt 0:00:51]} Ne6 {[%emt 0:05:01]} 47. a4 {[%emt 0:01:15]} Kf6 {[%emt 0:03:14]} 48. a5 {[%emt 0:04:27]} bxa5 {[%emt 0:01:25]} 49. bxa5 {[%emt 0:00:37]} Nd4+ {[%emt 0:02:54]} 50. Kd3 {[%emt 0:03:58]} Nb5 {[%emt 0:03:49]} 51. Kc4 {[%emt 0:00:46]} Na7 {[%emt 0:00:06]} 52. Kd5 {[%emt 0:00:58]} Ke7 {[%emt 0:01:54]} 53. a6 {[%emt 0:00:57]} Kf6 {[%emt 0:01:30]} 54. g3 {[%emt 0:00:12]} Ke7 {[%emt 0:00:22]} 55. f4 {[%emt 0:02:57]} gxf4 {[%emt 0:00:59]} 56. gxf4 {[%emt 0:00:01]} Kf6 {[%emt 0:00:57]} 57. f5 {[%emt 0:00:19]} Ke7 {[%emt 0:01:21]} 58. Ke5 {[%emt 0:00:16]} Kf7 {[%emt 0:04:46]} 59. f6 {[%emt 0:01:06]} Nb5 {[%emt 0:03:12]} 60. Bd5+ {[%emt 0:00:34]} Kf8 {[%emt 0:00:05]} 61. Bc4 {[%emt 0:01:46]} Nd6 {[%emt 0:01:03]} 62. Bd3 {[%emt 0:01:21]} Nc8 {[%emt 0:00:10]} 63. Ke6 {[%emt 0:00:36]} c5 {[%emt 0:02:32]} 64. Kd7 {[%emt 0:01:28]} c4 {[%emt 0:02:27]} 65. Bxc4 {[%emt 0:00:18]} Nb6+ {[%emt 0:00:05]} 66. Kc7 {[%emt 0:00:28]} Nxc4 {[%emt 0:00:05]} 67. a7 {[%emt 0:00:05]} 1-0

[Event "AUT Bundesliga 2022-23"]
[Site "Jenbach"]
[Date "2022.11.06"]
[Round "4.17"]
[White "Breder, Dennis"]
[Black "Bosiocic, Marin"]
[Result "0-1"]
[ECO "B30"]
[WhiteElo "2450"]
[BlackElo "2548"]
[Annotator "ChessBase"]
[PlyCount "68"]
[EventDate "2022.11.03"]
[EventType "team-tourn"]
[EventCountry "AUT"]
[SourceTitle "playchess.com"]
[Source "ChessBase"]
[SourceQuality "1"]
[TimeControl "40/5400+30:1800+30"]

1. e4 {[%emt 0:00:03]} c5 {[%emt 0:00:05]} 2. Nf3 {[%emt 0:00:03]} Nc6 {[%emt 0:00:06]} 3. Bb5 {[%emt 0:00:08]} e6 {[%emt 0:00:04]} 4. Bxc6 {[%emt 0:00:52]} bxc6 {[%emt 0:00:05]} 5. d3 {[%emt 0:00:03]} Ne7 {[%emt 0:00:07]} 6. Nbd2 {[%emt 0:00:42]} d6 {[%emt 0:00:06]} 7. e5 {[%emt 0:00:40]} d5 {[%emt 0:00:06]} 8. b3 {[%emt 0:13:44]} Nf5 {[%emt 0:03:45]} 9. Bb2 {[%emt 0:10:13]} a5 {[%emt 0:00:34]} 10. a4 {[%emt 0:01:39]} Qb6 {[%emt 0:02:49]} 11. g4 {[%emt 0:29:44]} Ne7 {[%emt 0:06:30]} 12. Nh4 {[%emt 0:05:53]} c4 {[%emt 0:00:58]} 13. dxc4 {[%emt 0:01:50]} Ba6 {[%emt 0:00:05]} 14. Qe2 {[%emt 0:04:30]} Ng6 {[%emt 0:00:58]} 15. Nxg6 {[%emt 0:01:26]} hxg6 {[%emt 0:00:07]} 16. Qf3 {[%emt 0:06:47]} Bc5 {[%emt 0:09:39]} 17. O-O-O {[%emt 0:10:09]} g5 {[%emt 0:00:11]} 18. cxd5 {[%emt 0:03:07]} cxd5 {[%emt 0:00:37]} 19. Kb1 {[%emt 0:03:20]} Rc8 {[%emt 0:01:17]} 20. Rc1 {[%emt 0:00:29]} Bxf2 {[%emt 0:08:47]} 21. c4 {[%emt 0:01:05]} Be3 {[%emt 0:00:56]} 22. Rc2 {[%emt 0:00:47]} Bb7 {[%emt 0:08:13]} 23. Re1 {[%emt 0:03:54]} d4 {[%emt 0:04:55]} 24. Qg3 {[%emt 0:00:46]} d3 {[%emt 0:05:53]} 25. Rxe3 {[%emt 0:00:14]} dxc2+ {[%emt 0:00:06]} 26. Kxc2 {[%emt 0:00:02]} Rxh2 {[%emt 0:01:12]} 27. Qxh2 {[%emt 0:00:23]} Qxe3 {[%emt 0:00:06]} 28. Qh8+ {[%emt 0:00:03]} Kd7 {[%emt 0:00:33]} 29. Qxg7 {[%emt 0:00:05]} Be4+ {[%emt 0:00:13]} 30. Nxe4 {[%emt 0:01:51]} Qxe4+ {[%emt 0:00:04]} 31. Kc3 {[%emt 0:00:55]} Qf3+ {[%emt 0:00:25]} 32. Kc2 {[%emt 0:00:03]} Qf2+ {[%emt 0:00:09]} 33. Kc3 {[%emt 0:00:17]} Rb8 {[%emt 0:00:25]} 34. Ba3 {[%emt 0:01:11]} Qe3+ {[%emt 0:00:12]} 0-1